bitfinex-derivatives/quotes_ETHF0:USTF0_20251107
["timestamp","ask_amount","ask_price","bid_price","bid_amount"]
[1762548275540,0.1458,3465.6,3464.0,13.9]
[1762548275738,0.1458,3465.0,3464.8,0.46778]
[1762548276036,0.14856995,3465.0,3464.8,0.00227489]
[1762548276247,0.2367,3464.9,3464.8,0.00227489]
[1762548276742,0.2367,3464.9,3461.3,5.12185547]
[1762548276743,0.1458,3464.3,3463.0,0.75601009]
[1762548276943,0.1458,3464.3,3463.9,0.4679]
[1762548277139,0.37623003,3464.2,3463.3,0.75601009]
[1762548277344,0.09023003,3464.1,3463.2,0.75601009]
[1762548277544,0.09023003,3464.0,3463.6,0.46794]
[1762548277746,0.75387,3464.2,3463.8,0.46792]
[1762548278041,0.09025286,3464.1,3463.9,0.4679]
[1762548278249,0.09025286,3464.0,3463.9,0.4679]
[1762548278750,0.09025286,3464.0,3463.5,0.00432793]
[1762548279049,0.09025286,3463.9,3463.5,0.00432793]
[1762548279249,0.286,3464.2,3463.6,0.46795]
[1762548279445,0.1458,3463.6,3463.5,0.00432793]
[1762548279752,0.47275927,3463.6,3463.5,0.00432793]
[1762548280048,0.1458,3462.9,3462.6,0.46807]
[1762548280249,0.1458,3462.9,3462.7,0.46807]
[1762548281046,0.1458,3462.9,3462.7,0.47142177]
[1762548281352,0.1458,3462.9,3462.7,0.00335177]
[1762548281645,0.1458,3462.9,3462.7,0.47141177]
[1762548281845,0.32697897,3462.8,3462.7,0.00335177]
[1762548282740,0.32697897,3462.8,3462.5,0.00432793]
[1762548282741,0.2468,3462.6,3462.5,0.00432793]
[1762548282942,0.33707897,3462.6,3462.5,0.00432793]
[1762548283142,0.33707897,3462.6,3462.5,2.793e-05]
[1762548283752,0.33707897,3462.6,3462.5,0.00323481]
[1762548284251,0.33707897,3462.6,3462.5,3.481e-05]
[1762548284747,0.2468,3461.9,3461.8,0.46819]
[1762548285544,0.71498,3461.9,3461.5,0.00432793]
[1762548285749,0.71700427,3461.9,3461.7,0.4682]
[1762548285952,0.24882427,3461.9,3461.7,0.4682]
[1762548286347,0.00202427,3461.9,3461.7,0.4682]
[1762548287251,0.47020427,3461.9,3461.7,0.4682]
[1762548287947,0.47020427,3461.9,3461.8,0.46819]
[1762548288146,0.56051045,3461.9,3461.8,0.46819]
[1762548288347,0.4682,3461.8,3461.5,0.00723408]
[1762548288545,0.00202427,3461.9,3461.7,0.4682]
[1762548288749,0.24882427,3461.9,3461.8,0.46819]
[1762548288945,0.09233288,3461.9,3461.8,0.46819]
[1762548289347,0.00202427,3461.9,3461.8,0.46819]
[1762548290849,0.24882427,3461.9,3461.8,0.46819]
[1762548291150,0.33913248,3461.9,3461.5,0.00723408]
[1762548291454,0.71700427,3461.9,3461.8,0.46819]
[1762548291759,0.00202427,3461.9,3461.8,0.46819]
[1762548296651,2.427e-05,3461.9,3461.8,0.46819]
[1762548296855,0.1458,3462.9,3462.8,0.46806]
[1762548297160,0.1458,3462.9,3461.8,14.80042725]
[1762548297161,0.3861,3462.9,3462.0,0.76542971]
[1762548297354,0.2403,3462.8,3462.7,0.46806]
[1762548297755,0.2439093,3462.8,3462.7,0.46806]
[1762548297954,0.0036093,3462.8,3462.7,0.46806]
[1762548298761,0.2439093,3462.8,3462.7,0.46806]
[1762548300256,0.2439093,3462.8,3462.0,0.76542971]
[1762548300464,0.3835,3462.0,3461.9,0.46818]
[1762548300656,0.1432,3462.0,3461.9,0.46818]
[1762548300858,0.1432,3462.5,3462.4,0.46811]
[1762548301061,0.0036093,3462.8,3462.7,0.46807]
[1762548301457,0.43817961,3463.1,3463.0,0.46803]
[1762548301660,0.1432,3464.5,3463.9,0.46791]
[1762548301856,0.46784,3464.4,3463.9,0.46791]
[1762548302067,0.61109,3464.0,3463.0,0.76467356]
[1762548302281,0.61109,3464.0,3462.9,0.76467356]
[1762548302572,0.2403,3463.7,3463.6,0.46795]
[1762548303162,0.1432,3463.2,3463.1,0.00432793]
[1762548303365,0.3835,3463.2,3463.1,0.47233793]
[1762548303669,0.1432,3463.2,3463.1,0.47233793]
[1762548304070,0.8515,3463.2,3463.1,0.00432793]
[1762548304265,0.2403,3462.8,3462.7,0.46807]
[1762548304661,0.46803,3463.1,3462.5,0.76467356]
[1762548304963,0.1432,3462.6,3462.5,1.23277356]
[1762548305263,0.1432,3463.2,3462.9,0.46804]
[1762548305467,0.2403,3462.9,3462.6,0.76478705]
[1762548305975,0.2403,3462.9,3462.8,0.46806]
[1762548306270,0.1432,3463.2,3463.1,0.46801]
[1762548306459,0.3835,3463.2,3463.1,0.46801]
[1762548306662,0.46803,3463.0,3462.9,0.46804]
[1762548306971,0.61121,3463.2,3462.4,0.76478705]
[1762548307176,0.3835,3463.2,3463.1,0.46802]
[1762548307768,0.6112,3463.2,3462.5,0.76478705]
[1762548307963,0.70832,3463.1,3463.0,0.46803]
[1762548308161,0.1432,3463.2,3463.1,0.46802]
[1762548308361,0.1432,3463.2,3462.7,0.46806]
[1762548308362,0.46805,3462.9,3462.7,0.46806]
[1762548308572,0.46805,3462.9,3462.5,0.76478705]
[1762548308771,0.1432,3462.6,3462.5,1.23288705]
[1762548309868,0.1432,3462.6,3462.5,0.4681]
[1762548310568,0.3835,3462.6,3462.4,0.76722902]
[1762548310775,0.3835,3462.6,3462.2,1.02715518]
[1762548310776,0.70843,3462.3,3462.2,0.00432793]
[1762548311262,0.70843,3462.3,3462.2,2.793e-05]
[1762548311670,0.2403,3462.3,3462.2,0.46817793]
[1762548312174,0.3835,3462.6,3462.5,0.46811]
[1762548312569,0.85159,3462.6,3462.5,0.46811]
[1762548312768,0.3835,3462.6,3462.5,0.46811]
[1762548313066,0.1432,3462.6,3462.5,0.46811]
[1762548313270,0.3835,3462.6,3462.5,0.46811]
[1762548313666,0.1432,3462.6,3462.5,0.46811]
[1762548314267,0.3835,3462.6,3462.5,0.46811]
[1762548314476,0.1432,3462.6,3462.5,0.46811]
[1762548319677,0.3835,3463.2,3463.1,0.46803]
[1762548319974,0.1432,3463.2,3463.1,0.46803]
[1762548320275,0.1432,3463.5,3463.4,0.46798]
[1762548320980,0.33262793,3463.8,3463.7,0.46794]
[1762548321277,0.00432793,3463.8,3463.7,0.46794]
[1762548322370,0.24462793,3463.8,3463.4,1.02480865]
[1762548322578,0.24462793,3463.8,3462.0,3.58529883]
[1762548322579,0.46801,3463.2,3463.1,1.02480865]
[1762548322777,0.61124,3463.0,3462.8,1.02480865]
[1762548323079,0.1432,3463.0,3462.8,0.46805]
[1762548323276,0.2403,3462.9,3462.8,0.46805]
[1762548324378,0.1432,3463.0,3462.9,0.46805]
[1762548324778,0.1432,3463.0,3462.9,1.49285865]
[1762548324980,0.1432,3463.5,3463.4,0.46798]
[1762548325174,0.442,3463.7,3463.6,0.46796]
[1762548325479,0.24462793,3463.8,3463.7,0.46794]
[1762548325684,0.1432,3463.5,3463.4,0.46798]
[1762548325980,0.3835,3463.5,3463.4,0.46798]
[1762548326474,0.1432,3463.5,3463.4,0.46798]
[1762548326780,0.84377,3463.5,3463.4,0.46798]
[1762548327678,0.3758,3463.5,3463.4,0.46798]
[1762548327878,0.84377,3463.5,3463.4,0.46798]
[1762548328274,0.1432,3463.5,3463.4,0.46798]
[1762548328777,0.00432793,3463.8,3463.7,0.46794]
[1762548330783,0.00432793,3463.8,3463.7,1.49131668]
[1762548331177,0.00432793,3463.8,3463.7,0.46794]
[1762548331376,0.00432793,3463.8,3463.7,1.49131668]
[1762548331883,0.23692793,3463.8,3463.5,1.02337668]
[1762548332084,0.1484,3463.5,3463.4,1.02337668]
[1762548332478,0.1484,3463.5,3463.4,1.49135668]
[1762548334281,0.1484,3463.5,3463.4,0.46798]
[1762548336584,0.381,3463.5,3463.4,0.46798]
[1762548339782,0.1484,3463.5,3463.4,0.46798]
[1762548340779,1.03042505,3465.2,3464.9,0.46778]
[1762548341083,0.2404,3464.9,3464.4,1.02337668]
[1762548341284,0.2404,3464.9,3464.8,0.46779]
[1762548341888,0.00244475,3464.9,3464.8,0.46996287]
[1762548342089,0.00244475,3464.9,3464.8,1.2342236]
[1762548342391,0.00244475,3464.9,3464.8,0.46996287]
[1762548343090,0.24284475,3464.9,3464.8,0.00217287]
[1762548343485,0.24284475,3464.9,3464.8,0.46996287]
[1762548343790,0.24284475,3464.9,3464.8,0.00217287]
[1762548344194,0.24284475,3464.9,3464.8,0.46996287]
[1762548345094,0.00244475,3464.9,3464.8,0.46996287]
[1762548345499,0.24284475,3464.9,3464.8,0.00217287]
[1762548345788,0.24284475,3464.9,3464.8,0.46996287]
[1762548346597,0.00244475,3464.9,3464.8,0.46996287]
[1762548349895,0.71061475,3464.9,3464.8,0.00217287]
[1762548350097,0.71061475,3464.9,3464.4,0.76426073]
[1762548350098,0.2404,3464.1,3463.5,0.76426073]
[1762548350291,0.1436,3464.0,3463.9,0.4679]
[1762548351100,0.1436,3464.0,3463.9,0.00282478]
[1762548351302,0.1436,3464.0,3463.9,0.47073478]
[1762548351604,0.8519,3464.0,3463.9,0.47073478]
[1762548351902,0.384,3464.0,3463.9,0.00282478]
[1762548352089,0.384,3464.0,3463.9,0.47073478]
[1762548352291,0.8519,3464.0,3463.9,0.00282478]
[1762548353306,0.384,3464.0,3463.9,0.00282478]
[1762548353603,0.384,3464.0,3463.9,0.47073478]
[1762548354894,0.1436,3464.0,3463.9,0.47073478]
[1762548355096,0.1436,3464.0,3463.9,1.23499551]
[1762548355399,0.1436,3464.5,3463.9,1.23499551]
[1762548355400,0.1436,3464.5,3464.4,0.46784]
[1762548358902,0.1436,3464.5,3464.2,0.76626418]
[1762548359104,0.2404,3464.3,3464.2,0.46787]
[1762548360094,0.70826,3464.3,3464.2,0.46787]
[1762548360405,0.3993,3464.0,3463.9,0.47073478]
[1762548361199,0.1498,3464.0,3463.3,0.27350461]
[1762548361400,0.2495,3463.2,3462.8,1.53424088]
[1762548361600,0.71751,3463.2,3463.1,0.46802]
[1762548361799,0.7175,3463.2,3463.1,0.46802]
[1762548362005,0.2495,3463.1,3463.0,0.46803]
[1762548362199,0.2495,3463.1,3463.0,0.47068776]
[1762548362400,0.71752,3463.1,3463.0,0.47068776]
[1762548362600,0.71752,3463.1,3463.0,0.00265776]
[1762548362800,0.71752,3463.1,3462.7,0.00295714]
[1762548362801,0.71756,3462.8,3462.7,0.00295714]
[1762548363197,0.2495,3462.8,3462.7,0.47102714]
[1762548363402,0.71756,3462.8,3462.7,0.00295714]
[1762548363803,0.71756,3462.8,3462.7,0.00591143]
[1762548364003,0.71763,3462.3,3462.2,0.46814]
[1762548364205,0.1498,3462.5,3461.6,2.00245088]
[1762548364405,0.61798,3462.0,3461.2,1.53424088]
[1762548364605,0.61798,3462.0,3461.0,0.1407]
[1762548364606,0.61798,3462.0,3461.7,0.4682]
[1762548364799,0.2495,3461.5,3461.0,1.53424088]
[1762548365004,0.25153412,3461.5,3461.3,0.46825]
[1762548365297,0.46826,3461.3,3461.1,0.46828]
[1762548365507,0.2495,3461.3,3461.2,0.46827]
[1762548365706,0.71777,3461.3,3461.0,0.47040642]
[1762548366005,0.2495,3461.2,3461.1,0.46829]
[1762548366205,0.1498,3461.4,3461.3,0.46826]
[1762548366410,0.00203412,3461.5,3461.4,0.2428]
[1762548367004,0.00203412,3461.5,3461.4,0.3131]
[1762548368309,0.3993,3462.5,3462.4,0.46811]
[1762548368619,0.3993,3462.5,3461.4,0.0703]
[1762548369010,0.46818,3461.9,3461.6,0.46822]
[1762548369320,0.47068097,3461.9,3461.6,0.46822]
[1762548369513,0.46819,3461.8,3461.5,0.46823]
[1762548369910,0.46822,3461.6,3461.4,0.00432792]
[1762548370313,0.2495,3461.5,3461.4,0.00432792]
[1762548370910,0.00250097,3461.9,3461.8,0.46819]
[1762548371115,0.25200097,3461.9,3461.8,0.46819]
[1762548371316,0.00250097,3461.9,3461.8,0.71099]
[1762548371916,0.25200097,3461.9,3461.8,0.46819]
[1762548372415,0.4682,3461.8,3461.5,0.46823]
[1762548372621,0.00250097,3461.9,3461.5,0.46823]
[1762548372926,0.2495,3461.8,3461.7,0.46821]
[1762548373319,0.00250097,3461.9,3461.8,0.46819]
[1762548373521,0.00250097,3461.9,3461.8,0.71099]
[1762548374125,0.00250097,3461.9,3461.8,0.46819]
[1762548374922,0.00250097,3461.9,3461.8,0.71099]
[1762548380432,0.00432793,3462.1,3462.0,0.77876]
[1762548380930,0.00432793,3462.1,3462.0,0.2428]
[1762548381130,0.00432793,3462.1,3461.4,0.12412792]
[1762548381435,0.00674986,3462.1,3462.0,0.77876]
[1762548381733,0.00674986,3462.1,3462.0,0.46816]
[1762548381933,0.00674986,3462.1,3461.4,0.12412792]
[1762548382835,0.3993,3462.0,3461.9,0.46815]
[1762548383328,0.00674986,3462.1,3462.0,0.46815]
[1762548384034,0.00674986,3462.1,3462.0,0.77875]
[1762548384635,0.00674986,3462.1,3462.0,0.71095]
[1762548386134,0.00674986,3462.1,3462.0,0.77925]
[1762548387134,0.00674986,3462.1,3462.0,0.71095]
[1762548387441,0.00674986,3462.1,3461.4,0.12412792]
[1762548387635,0.47487986,3462.1,3461.4,0.12412792]
[1762548387844,0.00674986,3462.1,3462.0,0.46815]
[1762548388038,0.00674986,3462.1,3462.0,0.85255]
[1762548391245,0.00674986,3462.1,3462.0,0.71705]
[1762548391447,0.00674986,3462.1,3462.0,0.46815]
[1762548392050,0.00674986,3462.1,3462.0,0.71705]
[1762548392738,0.00674986,3462.1,3462.0,0.46815]
[1762548393647,0.00674986,3462.1,3462.0,0.71705]
[1762548394237,0.00674986,3462.1,3462.0,1.81616749]
[1762548394836,0.00674986,3462.1,3462.0,1.49386749]
[1762548395040,0.24864986,3462.1,3462.0,1.49386749]
[1762548395647,0.24864986,3462.1,3462.0,0.46815]
[1762548396240,0.24864986,3462.1,3462.0,1.49386749]
[1762548396440,0.71677986,3462.1,3461.9,1.02571749]
[1762548396641,0.71677986,3462.1,3461.8,0.46817]
[1762548396642,0.2419,3461.9,3461.8,0.46817]
[1762548396848,0.2419,3461.8,3461.7,1.49389749]
[1762548397040,0.3792,3461.5,3461.4,1.49826541]
[1762548397249,0.3792,3461.5,3461.4,0.47254792]
[1762548397742,0.3792,3461.5,3461.4,0.00432792]
[1762548397945,0.3792,3461.5,3461.0,1.02783391]
[1762548397946,0.71017,3461.1,3461.0,0.00211642]
[1762548398146,0.09031217,3461.1,3461.0,0.00211642]
[1762548398341,0.09031217,3461.4,3461.3,0.46824]
[1762548398650,0.46816,3461.9,3461.5,0.46821]
[1762548398850,0.09031217,3461.9,3461.5,0.46821]
[1762548399052,0.46817,3461.8,3461.6,0.46819]
[1762548399254,0.09031217,3461.9,3461.1,1.02571749]
[1762548399445,0.2419,3461.9,3461.8,0.46816]
[1762548400049,0.1373,3462.0,3461.9,0.46816]
[1762548400249,0.22760621,3462.0,3461.9,0.46816]
[1762548400451,0.1373,3462.0,3461.9,0.46816]
[1762548400646,0.3792,3462.0,3461.5,0.1355]
[1762548400847,0.70897,3461.8,3461.7,0.46817]
[1762548401046,0.1373,3462.0,3461.9,0.46816]
[1762548401247,0.46816,3461.9,3461.3,1.02571749]
[1762548401447,0.1373,3462.0,3461.8,0.46816]
[1762548401752,0.1373,3462.0,3461.3,1.02571749]
[1762548401952,0.1373,3462.0,3461.9,0.46816]
[1762548401953,0.3781,3462.0,3461.9,0.46816]
[1762548402251,0.00674986,3462.1,3462.0,0.46814]
[1762548403147,0.00674986,3462.1,3462.0,0.71454]
[1762548404152,0.00674986,3462.1,3462.0,0.85004]
[1762548404754,0.00674986,3462.1,3462.0,0.46814]
[1762548405056,0.00674986,3462.1,3462.0,0.78084]
[1762548406946,0.00674986,3462.1,3462.0,0.71454]
[1762548407151,0.00674986,3462.1,3462.0,0.46814]
[1762548407354,0.00674986,3462.1,3461.7,1.02571749]
[1762548407553,0.00674986,3462.1,3462.0,0.46814]
[1762548407754,0.46817,3461.8,3461.7,0.71459]
[1762548407954,0.46816,3461.9,3461.8,0.46817]
[1762548408555,0.46817,3461.9,3461.7,0.46819]
[1762548409255,0.70897,3461.8,3461.7,0.46819]
[1762548410361,0.2408,3461.8,3461.7,0.46819]
[1762548411061,0.1452,3462.0,3461.9,0.46816]
[1762548411062,0.2408,3462.0,3461.9,0.46816]
[1762548411252,0.85414,3462.0,3461.9,0.46816]
[1762548412368,0.386,3462.0,3461.9,0.46816]
[1762548413461,0.46819,3461.7,3461.6,0.46817]
[1762548413963,0.70903,3461.6,3461.5,0.46819]
[1762548414264,0.85414,3462.0,3461.9,0.46816]
[1762548414664,0.70899,3461.9,3461.8,0.46817]
[1762548415964,0.70907,3461.1,3461.0,0.00211642]
[1762548416165,1.03042505,3461.8,3461.0,0.14031642]
[1762548416362,0.46824,3461.3,3461.2,0.2318]
[1762548416758,0.46824,3461.3,3461.2,0.70005]
[1762548417063,1.77673234,3461.8,3461.0,0.14031642]
[1762548417268,0.65598275,3461.7,3461.2,0.46825]
[1762548417472,0.65598275,3461.6,3461.2,0.46825]
[1762548417769,0.46824,3461.3,3461.2,0.46825]
[1762548417968,1.36727491,3462.1,3461.5,0.1382]
[1762548418273,1.36727491,3462.1,3461.5,0.83821]
[1762548418274,0.4682,3461.6,3461.5,0.83821]
[1762548419064,0.6558809,3461.6,3461.5,0.83821]
[1762548419265,1.1240809,3461.6,3461.5,0.1382]
[1762548419471,1.1240055,3461.6,3461.5,0.1382]
[1762548420275,0.4682,3461.6,3461.5,0.1382]
[1762548421167,0.65588172,3461.6,3461.5,0.37]
[1762548421364,0.33684986,3462.1,3461.8,0.46817]
[1762548421768,0.33684986,3462.1,3462.0,0.83815]
[1762548423467,0.57404986,3462.1,3461.5,0.1382]
[1762548423776,0.46824,3461.4,3461.1,2.00251088]
[1762548423970,0.33684986,3462.1,3461.0,0.14031642]
[1762548423971,0.46821,3461.6,3461.5,0.1382]
[1762548424175,0.46821,3461.6,3461.5,0.37]
[1762548424476,0.46821,3461.6,3461.5,0.1382]
[1762548424775,0.46819,3461.7,3461.5,0.60641]
[1762548424975,0.4682,3461.6,3461.5,0.1382]
[1762548425273,0.46824,3461.4,3461.3,0.46824]
[1762548425478,0.46821,3461.5,3461.3,0.46824]
[1762548425775,0.46823,3461.4,3461.3,0.46824]
[1762548426078,0.46823,3461.5,3461.3,0.46824]
[1762548426279,0.46823,3461.5,3461.4,0.46823]
[1762548426678,0.46819,3461.7,3461.6,0.46819]
[1762548426881,0.46816,3461.9,3461.7,0.46817]
[1762548427079,0.46817,3461.8,3461.7,0.46817]
[1762548427380,0.65605603,3462.0,3461.5,0.1382]
[1762548427581,0.00674986,3462.1,3462.0,0.83815]
[1762548428869,0.0617,3462.4,3462.3,0.6999]
[1762548429070,0.46796,3463.4,3463.2,0.46798]
[1762548429269,0.46797,3463.3,3463.0,0.1382]
[1762548429474,1.12380027,3463.3,3463.1,0.468]
[1762548429680,0.46797,3463.3,3463.1,0.468]
[1762548429983,0.46797,3463.3,3463.2,0.46798]
[1762548429984,0.00210963,3463.3,3463.2,0.46798]
[1762548430180,0.00210963,3463.3,3463.2,0.2318]
[1762548430377,0.84901,3463.0,3462.9,0.00432793]
[1762548430877,1.50423159,3463.0,3462.9,0.00432793]
[1762548431075,0.84901,3463.0,3462.9,0.00432793]
[1762548432073,0.46801,3463.0,3462.9,0.00432793]
[1762548432275,0.84901,3463.0,3462.9,0.00432793]
[1762548433774,0.84901,3463.0,3462.9,0.47234793]
[1762548433980,0.84901,3463.0,3462.9,0.00432793]
[1762548434178,0.381,3463.0,3462.9,0.47234793]
[1762548434680,0.84901,3463.0,3462.9,0.00432793]
[1762548435878,0.46799,3463.2,3462.9,0.00432793]
[1762548436076,0.468,3463.1,3463.0,0.46801]
[1762548436881,0.46801,3463.0,3462.9,0.47234793]
[1762548437919,0.70521,3463.0,3462.9,0.47234793]
[1762548438187,0.84901,3463.0,3462.9,0.00432793]
[1762548439484,0.00210963,3463.3,3463.2,0.46798]
[1762548439690,0.00210963,3463.3,3463.2,0.69978]
[1762548440884,0.47007963,3463.3,3463.2,0.69978]
[1762548441591,0.47007963,3463.3,3463.2,0.46798]
[1762548442084,0.00210963,3463.3,3463.2,0.46798]
[1762548442785,0.00210963,3463.3,3463.2,0.69978]
[1762548452685,0.71587963,3463.3,3463.1,0.46799]
[1762548452993,0.00210963,3463.3,3463.2,0.70638]
[1762548453685,0.00210963,3463.3,3463.2,0.2384]
[1762548453887,0.24790963,3463.3,3463.2,0.46798]
[1762548454390,0.00210963,3463.3,3463.2,0.70638]
[1762548454593,0.71587963,3463.3,3463.2,0.70638]
[1762548454798,0.71587963,3463.3,3463.2,0.46798]
[1762548455195,0.24790963,3463.3,3463.2,0.46798]
[1762548455586,0.24790963,3463.3,3463.2,0.70638]
[1762548456488,0.00210963,3463.3,3463.2,0.70638]
[1762548456688,0.71587963,3463.3,3463.2,0.46798]
[1762548458389,0.71587963,3463.3,3463.2,0.70638]
[1762548458694,0.24790963,3463.3,3463.2,0.70638]
[1762548459897,0.00210963,3463.3,3463.2,0.70638]
[1762548460992,0.71587963,3463.3,3463.2,0.2384]
[1762548461590,0.24790963,3463.3,3462.9,0.00432793]
[1762548461797,0.2425,3463.1,3463.0,0.468]
[1762548461998,0.66065305,3463.3,3463.2,0.70759]
[1762548462195,0.6606743,3463.3,3463.2,0.70759]
[1762548462490,0.24460963,3463.3,3463.2,0.70759]
[1762548462698,0.6606743,3463.3,3463.2,0.70759]
[1762548462890,0.00210963,3463.3,3463.2,0.70759]
[1762548465398,0.00210963,3463.3,3463.1,0.46801]
[1762548465599,0.00210963,3463.3,3462.9,0.00432793]
[1762548465600,0.71051,3463.2,3462.9,0.00432793]
[1762548466196,0.2425,3463.2,3463.1,0.46801]
[1762548466389,0.2425,3463.2,3462.9,0.00432793]
[1762548466390,0.66106431,3463.3,3463.2,0.7076]
[1762548466999,1.12904431,3463.3,3463.2,0.7076]
[1762548467393,1.12904431,3463.3,3462.9,0.00432793]
[1762548467394,0.2425,3463.1,3462.9,0.00432793]
[1762548467994,0.2425,3463.1,3463.0,0.70762]
[1762548468604,0.85912,3463.0,3462.9,0.00432793]
[1762548468800,1.51853313,3463.0,3462.9,0.00432793]
[1762548470299,1.05051313,3463.0,3462.9,0.47236793]
[1762548470598,1.51853313,3463.0,3462.9,0.47236793]
[1762548470999,0.65941313,3463.0,3462.9,0.71196793]
[1762548471399,0.24460963,3463.3,3463.0,0.46802]
[1762548471601,0.2425,3463.1,3463.0,0.46802]
[1762548471802,0.90181643,3463.1,3463.0,0.46802]
[1762548472005,0.90181643,3463.1,3462.9,0.00432793]
[1762548472205,0.90181643,3463.0,3462.9,0.00432793]
[1762548472504,0.3911,3463.0,3462.9,0.00432793]
[1762548472705,0.85912,3463.0,3462.9,0.00432793]
[1762548472898,1.51843643,3463.0,3462.9,0.00432793]
[1762548474906,1.51843643,3463.0,3462.9,0.47236793]
[1762548475102,1.05041643,3463.0,3462.9,0.47236793]
[1762548475407,1.51844643,3463.0,3462.9,0.00432793]
[1762548477505,0.71058,3462.6,3462.5,0.46809]
[1762548477695,1.36989643,3462.6,3462.5,0.46809]
[1762548478300,0.46813,3462.4,3462.3,0.46811]
[1762548478502,0.70153,3462.4,3462.3,0.46811]
[1762548479007,0.46813,3462.4,3462.3,0.46811]
[1762548479210,0.3719,3462.5,3462.4,0.46811]
[1762548479410,0.2334,3462.5,3462.4,0.70331]
[1762548479707,0.3719,3462.5,3462.4,0.46811]
[1762548480705,0.2334,3462.7,3462.6,0.46807]
[1762548480904,0.6586348,3462.9,3462.7,0.2352]
[1762548480905,0.6586348,3462.8,3462.7,0.2352]
[1762548481096,1.12666199,3462.9,3462.8,0.46805]
[1762548482007,0.23550963,3463.3,3463.2,0.468]
[1762548482204,0.23550963,3463.3,3462.5,0.1457]
[1762548482205,0.3796,3463.4,3463.3,0.7032]
[1762548482406,0.3796,3463.4,3463.0,1.68082089]
[1762548482407,0.00432793,3463.5,3463.4,0.70318]
[1762548483309,0.00737696,3463.5,3463.4,0.70318]
[1762548484302,0.1385,3464.5,3463.9,0.2352]
[1762548484500,0.65817827,3464.6,3464.5,0.70304]
[1762548484702,1.03042505,3465.4,3464.7,0.46781]
[1762548484918,0.74829423,3465.3,3464.0,0.0306]
[1762548485102,0.4678,3464.9,3464.6,0.2352]
[1762548485300,0.00307061,3464.9,3464.8,0.46779]
[1762548485504,0.00307061,3464.9,3464.8,0.70299]
[1762548486513,0.00307061,3464.9,3464.8,0.2352]
[1762548487113,0.70121,3464.7,3464.6,0.00266896]
[1762548489011,0.2334,3464.7,3464.6,0.47049896]
[1762548489213,0.46781,3464.7,3464.6,0.00266896]
[1762548489608,0.70121,3464.7,3464.6,0.00266896]
[1762548489905,0.2334,3464.7,3464.6,0.47049896]
[1762548490618,0.70121,3464.7,3464.6,0.00266896]
[1762548492918,0.83974,3464.5,3464.4,0.00432793]
[1762548493816,0.83974,3464.5,3464.4,0.00643281]
[1762548494610,0.2334,3463.3,3463.2,0.468]
[1762548494917,0.1385,3463.0,3462.2,1.53882089]
[1762548495111,0.46806,3462.9,3462.6,0.46808]
[1762548495315,0.46806,3462.9,3462.0,0.1447]
[1762548495510,0.2334,3462.7,3462.6,0.46809]
[1762548495721,0.1385,3463.0,3462.6,0.46809]
[1762548495722,0.00432793,3462.8,3462.6,0.46809]
[1762548495914,0.00432793,3462.8,3462.0,0.14790094]
[1762548495915,0.00432793,3462.8,3462.0,0.00320094]
[1762548496119,0.70156,3462.1,3462.0,0.00320094]
[1762548496319,0.1385,3461.5,3460.6,1.53882089]
[1762548496520,0.1385,3461.5,3461.2,0.46828]
[1762548496825,0.46826,3461.4,3461.0,0.46831]
[1762548497013,0.1385,3461.5,3460.2,10.62240405]
[1762548497014,0.1385,3461.5,3460.2,1.53882089]
[1762548497211,0.1385,3461.0,3460.7,0.46835]
[1762548497414,0.60682,3461.0,3460.5,0.46838]
[1762548497610,0.46833,3460.9,3460.5,0.46838]
[1762548497820,0.1385,3461.0,3460.2,0.4713479]
[1762548498021,0.2334,3460.3,3460.2,0.0029279]
[1762548498722,0.1385,3460.5,3460.2,0.0029279]
[1762548499320,0.2334,3460.3,3460.2,0.0029279]
[1762548500220,0.1385,3460.5,3460.2,0.0029279]
[1762548500417,0.2334,3460.4,3460.2,0.0029279]
[1762548500921,0.1385,3460.5,3460.3,0.4684]
[1762548501422,0.1385,3461.0,3460.2,0.0029279]
[1762548501925,0.1385,3461.0,3460.8,0.46833]
[1762548502315,0.46836,3460.7,3460.2,0.0029279]
[1762548502519,0.1385,3460.5,3460.2,0.0029279]
[1762548502717,0.1385,3461.0,3460.2,0.0029279]
[1762548502919,0.1385,3461.0,3460.7,0.46834]
[1762548503125,0.46833,3460.9,3460.2,0.0029279]
[1762548503320,0.1385,3460.5,3460.2,0.0029279]
[1762548503826,0.2334,3460.3,3460.2,0.0029279]
[1762548505128,0.1385,3459.5,3459.4,0.46852]
[1762548505519,0.1385,3460.0,3459.8,0.46847]
[1762548505723,0.1385,3460.5,3460.0,0.46844]
[1762548505930,0.2334,3460.2,3459.0,0.0758]
[1762548506132,0.1461,3460.0,3459.8,0.46847]
[1762548506328,0.1385,3460.5,3460.3,0.4684]
[1762548506732,0.1461,3460.0,3459.8,0.46846]
[1762548506931,0.2349,3459.9,3459.8,0.46847]
[1762548507132,0.2349,3459.8,3459.0,0.00211266]
[1762548507329,0.1461,3459.5,3459.3,0.46854]
[1762548507633,0.2349,3459.4,3459.0,0.00211266]
[1762548508223,0.1461,3459.5,3459.4,0.46853]
[1762548508427,0.2349,3459.9,3459.8,0.46847]
[1762548509030,0.1461,3460.0,3459.8,0.46847]
[1762548510327,0.1461,3460.0,3459.9,0.46846]
[1762548510525,0.1461,3460.0,3459.0,0.00211266]
[1762548510721,0.2349,3459.9,3459.8,0.46847]
[1762548510922,0.1461,3460.0,3459.9,0.46846]
[1762548511327,0.1461,3460.0,3459.0,0.00211266]
[1762548511328,0.1385,3460.5,3459.0,0.07791266]
[1762548511625,0.2349,3460.3,3460.2,0.46842]
[1762548512930,0.3734,3460.5,3460.4,0.46839]
[1762548513133,0.1385,3460.5,3460.4,0.46839]
[1762548513320,0.2687,3460.6,3460.5,0.46838]
[1762548514421,0.2687,3460.6,3460.5,0.71378]
[1762548514624,0.1461,3460.5,3460.4,0.46838]
[1762548514945,0.381,3460.5,3460.4,0.46838]
[1762548515131,0.1461,3460.5,3460.4,0.46838]
[1762548515429,0.2687,3460.6,3460.5,0.71378]
[1762548516626,0.2687,3460.6,3460.5,0.46838]
[1762548516936,0.1461,3460.5,3459.5,0.0309]